[Event "Susha Chess Blitz 2022"]
[Site "Shusha"]
[Date "2022.09.24"]
[Round "2"]
[White "Mamedov, Rauf"]
[Black "Kasimdzhanov, Rustam"]
[Result "1-0"]
[ECO "E10"]
[WhiteElo "2646"]
[BlackElo "2670"]
[Annotator "TA"]
[PlyCount "75"]
[EventDate "2022.09.24"]
[EventType "tourn"]
[EventCountry "AZE"]
[SourceTitle "playchess.com"]
[Source "ChessBase"]
[SourceQuality "1"]
[TimeControl "180+2"]

{[%evp 17,75,0,0,0,0,0,31,0,0,0,0,0,52,0,0,0,40,-15,0,5,20,5,15,0,49,37,45,40,31,5,48,46,124,125,177,135,156,151,185,183,169,161,155,154,196,225,267,249,293,323,503,509,960,942,856,990,921,901,29988,1135]} 1. d4 {[%emt 0:00:02] Atalik,S} Nf6 {[%emt 0:00:01]} 2. c4 {[%emt 0:00:01]} e6 {[%emt 0:00:01]} 3. Nf3 {[%emt 0:00:01]} d5 {[%emt 0:00:00]} 4. e3 {[%emt 0:00:01]} b6 {[%emt 0:00:03]} 5. Nc3 {[%emt 0:00:02]} Bb7 {[%emt 0:00:07]} 6. cxd5 {[%emt 0:00:01]} exd5 {[%emt 0:00:01]} 7. Bb5+ {[%emt 0:00:01]} c6 {[%emt 0:00:04]} 8. Bd3 {[%emt 0:00:01]} Be7 {[%emt 0:00:04]} 9. O-O {[%emt 0:00:02]} O-O {[%emt 0:00:06]} 10. b3 {[%emt 0:00:01] E14: Queen's Indian: Classical Variation (4 e3).} Nbd7 {[%emt 0:00:02]} 11. Bb2 {[%emt 0:00:02]} Re8 {[%emt 0:00:02]} 12. Re1 {[%emt 0:00:03] White is slightly better.} (12. Ne5 {seems wilder.} Bb4 13. f4 Rc8 14. Rc1) 12... Bd6 {[%emt 0:00:02]} 13. Qc2 {[%emt 0:00:02]} Rc8 {[%emt 0:00:15]} 14. Rad1 {[%emt 0:00:02]} Bb8 {[%emt 0:00:12]} (14... g6 $11) 15. Bf5 {[%emt 0:00:03] [#]} (15. e4 $14) 15... g6 $146 {[%emt 0:00:08]} ({Predecessor:} 15... Qc7 16. g3 Rcd8 17. b4 a6 18. a4 b5 19. a5 Qd6 20. Ba3 Bc7 21. Ra1 Re7 22. Nd2 h5 {1-0 (62) Atalik,S (2561)-Buono,M (2133) Bratto 2005 CBM 108 Extra [Atalik,S]}) 16. Bh3 {[%emt 0:00:01]} Bd6 {[%emt 0:00:05]} 17. Qb1 {[%emt 0:00:15]} (17. Ne5 $14) 17... Rc7 {[%emt 0:00:03]} 18. g3 {[%emt 0:00:02]} Nf8 {[%emt 0:00:10]} 19. Ne5 {[%emt 0:00:05]} Bb4 {[%emt 0:00:05]} 20. a3 {[%emt 0:00:03]} Bd6 {[%emt 0:00:05]} (20... Bxc3 $11 21. Bxc3 Ne4) 21. b4 $14 {[%emt 0:00:04]} Bc8 {[%emt 0:00:13]} 22. Bg2 {[%emt 0:00:24]} Bf5 {[%emt 0:00:00]} 23. Qa2 {[%emt 0:00:01]} a6 {[%emt 0:00:09] Against b5} ({Less strong is} 23... Bxe5 24. dxe5 N6d7 25. f4 $16) 24. Qb3 {[%emt 0:00:04]} N8d7 {[%emt 0:00:32]} ({Black should play} 24... b5 $14) 25. e4 $16 {[%emt 0:00:20] White is more active.} Be6 {[%emt 0:00:10]} (25... Bxe5 $16 {might work better.} 26. dxe5 Nxe4) 26. exd5 {[%emt 0:00:06]} cxd5 {[%emt 0:00:03]} 27. Nxd5 {[%emt 0:00:04]} Nxd5 {[%emt 0:00:48]} 28. Bxd5 {[%emt 0:00:02]} Bxe5 {[%emt 0:00:07]} 29. Bxe6 {[%emt 0:00:16]} Rxe6 {[%emt 0:00:03]} 30. dxe5 {[%emt 0:00:01]} h5 {[%emt 0:00:10]} 31. Rd6 {[%emt 0:00:15]} Qe8 {[%emt 0:00:01] Strongly threatening ...Rxd6.} 32. Red1 {[%emt 0:00:07]} Nf8 {[%emt 0:00:03]} 33. Rd8 {[%emt 0:00:11]} Qc6 {[%emt 0:00:01]} (33... Qe7 $142 34. Qd3 b5) 34. Qe3 $18 {[%emt 0:00:08] Hoping for Qh6.} Kg7 {[%emt 0:00:06] Inhibits Qh6+.} (34... Re8 $142 35. e6 Rxd8 36. Rxd8 Qxe6) 35. Bc1 {[%emt 0:00:06] Intending Qh6+ and mate.} g5 {[%emt 0:00:06]} 36. Qxg5+ {[%emt 0:00:03]} Rg6 {[%emt 0:00:02]} 37. Qxh5 {[%emt 0:00:07][%cal Od8f8] Threatening mate with Rxf8!} Qe4 {[%emt 0:00:03] [#]} 38. Bg5 {[%emt 0:00:07] Weighted Error Value: White=0.10 (very precise) /Black=0.55} (38. Rxf8 $142 $1 Qe1+ 39. Rxe1 Kxf8 40. Qh8+ Ke7 {[#]} 41. Bg5+ $1 {[%mdl 512]} Ke6 42. Bd8 Ra7 43. Qh3+ Kd5 44. Rd1+ Kc6 45. Qc8+ Rc7 46. Qxa6) 1-0

[Event "Susha Chess Blitz 2022"]
[Site "Shusha"]
[Date "2022.09.24"]
[Round "3"]
[White "Wang, Hao"]
[Black "Kasimdzhanov, Rustam"]
[Result "0-1"]
[ECO "C78"]
[WhiteElo "2722"]
[BlackElo "2670"]
[Annotator "TA"]
[PlyCount "60"]
[EventDate "2022.09.24"]
[EventType "tourn"]
[EventCountry "AZE"]
[SourceTitle "playchess.com"]
[Source "ChessBase"]
[SourceQuality "1"]
[TimeControl "180+2"]

{[%evp 12,60,51,37,60,33,22,0,0,0,7,7,0,0,8,0,7,14,11,13,11,-163,-158,-144,-75,-70,-60,-427,-414,-421,-417,-447,-442,-416,-295,-714,-366,-390,-364,-356,-333,-325,-327,-420,-384,-443,-453,-687,-679,-653,-564]} 1. e4 {[%emt 0:00:02]} e5 {[%emt 0:00:01]} 2. Nf3 Nc6 3. Bb5 a6 4. Ba4 {[%emt 0:00:03]} Nf6 {[%emt 0:00:02]} 5. O-O {[%emt 0:00:01]} Bc5 {[%emt 0:00:01]} 6. c3 {[%emt 0:00:02]} b5 {[%emt 0:00:02]} 7. Bc2 {[%emt 0:00:01] aiming for d4.} d5 {[%emt 0:00:01] C78: Ruy Lopez: Archangelsk and Möller Defences.} 8. d4 {[%emt 0:00:02] [#] Strongly threatening exd5.} (8. a4 $5 {[%cal Re4d5]}) 8... dxe4 {[%emt 0:00:04]} 9. Nbd2 {[%emt 0:00:06]} exf3 {[%emt 0:00:05] The position is equal.} 10. Qxf3 {[%emt 0:00:02]} Be7 {[%emt 0:00:38] ...Qd5 is the strong threat.} ({Don't do} 10... e4 11. Nxe4 (11. Bxe4 Nxe4 12. Qxe4+ Be7 $16) 11... Bxd4 12. cxd4 $16) 11. Qxc6+ {[%emt 0:00:02]} Bd7 {[%emt 0:00:01]} 12. Qf3 {[%emt 0:00:01]} exd4 {[%emt 0:00:02]} 13. Ne4 {[%emt 0:00:03]} O-O {[%emt 0:00:06]} 14. Rd1 {[%emt 0:00:02]} c5 {[%emt 0:00:12]} 15. Bg5 {[%emt 0:00:01]} Re8 {[%emt 0:00:21] [#] Threatens to win with ...Nxe4.} 16. b4 $146 {[%emt 0:00:22]} (16. Bxf6 $11 Bxf6 17. Nxc5) ({Predecessor:} 16. Bxf6 Bxf6 17. Nxc5 Bc6 18. Qxc6 Rc8 19. Qxa6 Rxc5 20. g3 Qc8 21. Qxc8 Rexc8 22. Bb3 dxc3 23. bxc3 Rxc3 {½-½ (31) Zhang,Z (2640)-Bu,X (2708) Hangzhou 2022}) 16... Nxe4 $19 {[%emt 0:00:21]} ({Worse is} 16... cxb4 17. Bxf6 Bxf6 18. Nxf6+ Qxf6 19. Qxf6 gxf6 20. Rxd4 $11) 17. Qxe4 {[%emt 0:00:25] [#]} Bxg5 {[%emt 0:00:02] Dancing on a razor blade.} (17... g6 $142 $1 18. Bxe7 Rxe7) 18. Qxh7+ $17 {[%emt 0:00:14]} Kf8 {[%emt 0:00:01]} 19. bxc5 $2 {[%emt 0:00:14][%mdl 8192]} ({Only move:} 19. Qh8+ $1 $15 Ke7 20. Qh5) 19... Qf6 $19 {[%emt 0:00:12]} 20. Be4 {[%emt 0:00:20]} Rac8 {[%emt 0:00:23]} 21. cxd4 {[%emt 0:00:04]} g6 {[%emt 0:00:04]} 22. Bf3 {[%emt 0:00:11]} Bf5 {[%emt 0:00:04]} 23. c6 $2 {[%emt 0:00:09]} (23. g3 Qg7 24. Qxg7+ Kxg7 25. c6) 23... Bc2 {[%emt 0:00:07]} 24. d5 {[%emt 0:00:31]} Bxd1 {[%emt 0:00:04]} 25. Rxd1 {[%emt 0:00:02]} Bf4 {[%emt 0:00:06][%cal Bg5f4,Bf4d6,Bd6c5][%mdl 32]} 26. g3 {[%emt 0:00:04]} Bd6 {[%emt 0:00:04] And now ...Ke7 would win.} 27. Bg4 {[%emt 0:00:07]} Rc7 {[%emt 0:00:17] White must now prevent ...Re4.} 28. Qh6+ {[%emt 0:00:07]} Kg8 {[%emt 0:00:01] Black is clearly winning.} 29. Bd7 {[%emt 0:00:06]} (29. h3 $142) 29... Re2 {[%emt 0:00:03]} 30. Rf1 {[%emt 0:00:05]} Bc5 {[%emt 0:00:04] Weighted Error Value: White=0.71/Black=0.42} 0-1

[Event "Susha Chess Blitz 2022"]
[Site "Shusha"]
[Date "2022.09.24"]
[Round "3"]
[White "Maghsoodloo, Parham"]
[Black "Durarbayli, Vasif"]
[Result "1/2-1/2"]
[ECO "E17"]
[WhiteElo "2721"]
[BlackElo "2628"]
[Annotator "TA"]
[PlyCount "117"]
[EventDate "2022.09.24"]
[EventType "tourn"]
[EventCountry "AZE"]
[SourceTitle "playchess.com"]
[Source "ChessBase"]
[SourceQuality "1"]
[TimeControl "180+2"]

{[%evp 13,117,18,32,25,22,27,42,37,42,48,47,20,36,0,31,29,43,-10,-12,-41,15,22,23,30,82,80,133,110,105,0,58,62,29,-6,0,0,115,-84,-93,-95,-106,-112,-110,-228,-220,-231,-233,-223,-211,-210,-216,-204,-212,-205,-175,-166,-175,-170,-171,-218,-197,-204,-199,-182,-97,-95,-70,-72,-64,-107,-105,-161,-137,-143,-123,-142,-91,-118,-62,-64,-53,-104,-33,-46,-26,-25,-15,-248,-248,-304,-273,-384,-179,-215,-9,-8,0,-62,-12,-12,-9,-10,0,-8,0,-10]} 1. d4 {[%emt 0:00:01]} Nf6 {[%emt 0:00:00]} 2. c4 e6 3. Nf3 b6 4. g3 {[%emt 0:00:04]} Bb7 {[%emt 0:00:01]} 5. Bg2 {[%emt 0:00:01]} Be7 {[%emt 0:00:01]} 6. O-O {[%emt 0:00:02]} O-O {[%emt 0:00:01]} 7. Re1 c5 8. d5 {[%emt 0:00:13] E17: Queen's Indian: 4 g3 Bb7 5 Bg2 Be7.} exd5 {[%emt 0:00:02]} 9. Nh4 {[%emt 0:00:01][%cal Rc4d5]} g6 {[%emt 0:00:00]} 10. cxd5 {[%emt 0:00:02] White is slightly better.} d6 {[%emt 0:00:01]} 11. Nc3 {[%emt 0:00:01]} Re8 {[%emt 0:00:00] [#]} 12. h3 $146 {[%emt 0:00:06]} ({Predecessor:} 12. e4 Bf8 13. Rb1 Nbd7 14. Bf1 a6 15. a4 Qc7 16. b3 Re7 17. f4 Rae8 18. e5 {1-0 (37) Kozul,Z (2639)-Piangerelli,M (2065) Cattolica 2022}) 12... Nbd7 {[%emt 0:00:05]} 13. a4 {[%emt 0:00:09]} a6 {[%emt 0:00:01]} 14. e4 {[%emt 0:00:10]} Bf8 {[%emt 0:00:04] Prevents Bh6.} 15. Nf3 {[%emt 0:00:05]} (15. Bf1 $14) 15... b5 $11 {[%emt 0:00:13]} 16. Qc2 {[%emt 0:00:34]} Qb8 {[%emt 0:01:06]} (16... b4 $15 17. Nb1 c4) 17. b3 {[%emt 0:00:09]} Bg7 {[%emt 0:00:16] And now ...b4 would win.} 18. Bb2 {[%emt 0:00:01]} c4 {[%emt 0:00:05]} (18... b4 $11 {keeps the balance.}) 19. b4 $16 {[%emt 0:00:03]} (19. axb5 $6 cxb3 20. Qxb3 Nc5 $11) 19... bxa4 {[%emt 0:00:26]} (19... h6 $142) 20. Rxa4 {[%emt 0:00:07]} Qc7 {[%emt 0:00:04]} 21. b5 {[%emt 0:00:32]} (21. Bc1 $16) 21... axb5 {[%emt 0:00:14]} (21... Nc5 $11 22. b6 (22. Rxc4 Nfd7 $11) 22... Qxb6 23. Rxc4 Nfxe4 24. Nxe4 Bxb2) 22. Nxb5 {[%emt 0:00:08]} Qb6 {[%emt 0:00:13]} 23. Rb4 {[%emt 0:00:20] Black must now prevent Bd4.} ({Reject} 23. Qxc4 Rxa4 24. Qxa4 Nc5 $15) 23... Ba6 {[%emt 0:00:09]} 24. Bd4 {[%emt 0:00:03]} Qa5 {[%emt 0:00:16] [#]} (24... Nc5 $11 25. Qb2 (25. Qxc4 Nfxe4 26. Bxg7 Kxg7 $11) 25... Qd8) 25. Qxc4 $2 {[%emt 0:00:28] White has more active pieces.} (25. Ra4 $1 $16 {[%cal Ra4a5] is forced if you want to stay better.} Qxb5 26. Rb1) 25... Rec8 $17 {[%emt 0:00:20]} 26. Qb3 {[%emt 0:00:07]} Nc5 {[%emt 0:00:01]} 27. Qb1 {[%emt 0:00:06]} Nd3 $1 $36 {[%emt 0:00:06][%mdl 2112] Deflection. Keeping White busy.} 28. Qxd3 {[%emt 0:00:13]} Qxb4 $19 {[%emt 0:00:02]} 29. Bf1 {[%emt 0:00:10]} Rab8 {[%emt 0:00:05]} 30. Rb1 {[%emt 0:00:01]} Bxb5 {[%emt 0:00:04]} 31. Rxb4 {[%emt 0:00:02]} Bxd3 {[%emt 0:00:01][%mdl 64] Discovered Attack} 32. Rxb8 {[%emt 0:00:02]} Rxb8 {[%emt 0:00:01]} 33. Bxd3 {[%emt 0:00:01]} Rb3 {[%emt 0:00:03]} 34. Ne1 {[%emt 0:00:04]} Nd7 {[%emt 0:00:03]} 35. Bxg7 {[%emt 0:00:01]} Kxg7 {[%emt 0:00:01][%mdl 4096] Endgame KRN-KBN} 36. f3 {[%emt 0:00:01]} (36. Bc2 $142 Ra3 37. Kf1) 36... Rb2 {[%emt 0:00:03]} 37. Kf1 {[%emt 0:00:03]} Rd2 {[%emt 0:00:01]} 38. Be2 {[%emt 0:00:02]} g5 {[%emt 0:00:03]} (38... f5 $19 39. exf5 gxf5) 39. Ng2 $17 {[%emt 0:00:02]} Ra2 {[%emt 0:00:01][%cal Of7f5]} 40. Ne3 {[%emt 0:00:01]} Kf6 {[%emt 0:00:03]} 41. Nf5 {[%emt 0:00:03]} Ke5 {[%emt 0:00:01]} 42. Ne3 {[%emt 0:00:02]} (42. Nh6 $17 {keeps fighting.}) 42... Kd4 {[%emt 0:00:04]} 43. Nf5+ {[%emt 0:00:01]} Kc5 {[%emt 0:00:01]} 44. h4 {[%emt 0:00:02]} gxh4 {[%emt 0:00:04]} (44... g4 $142 45. Kf2 Ne5 46. fxg4 Nxg4+ 47. Kf3 h5) 45. Nxh4 {[%emt 0:00:01]} Ne5 {[%emt 0:00:02]} (45... Nb6 $17 46. Kf2 Nc4) 46. Nf5 $15 {[%emt 0:00:01]} f6 {[%emt 0:00:03]} 47. f4 {[%emt 0:00:05]} (47. Ng7 $15) 47... Nf7 {[%emt 0:00:02]} ({Black should try} 47... Nd7 $17 48. Kf2 Nb6) 48. Kf2 {[%emt 0:00:03]} Ra3 {[%emt 0:00:01]} 49. Ng7 {[%emt 0:00:02]} Kd4 {[%emt 0:00:02]} 50. Bf3 {[%emt 0:00:02]} (50. Ne8 $11 {and White stays safe.}) 50... Ra2+ $19 {[%emt 0:00:00]} 51. Kg1 Ke3 52. Bg2 {[%emt 0:00:04]} (52. Bh5 {was the only defense.} Nh6 53. Ne8 Kxe4 54. Nxd6+ Kxd5 55. Ne8) 52... Ra1+ {[%emt 0:00:02]} (52... Nh6 $142 {aiming for ...Ra1+.} 53. Kh2 Kf2) 53. Kh2 {[%emt 0:00:01] [#]} Kf2 $2 {[%emt 0:00:01]} (53... Nh6 $1 $19 {...Kf2 is the strong threat.} 54. Ne8 Ng4+ 55. Kh3 Nf2+ 56. Kh2 Nxe4 57. Bxe4 Kxe4 58. Nxf6+ Kf5 59. Nxh7 Ra5) 54. Nh5 $1 $11 {[%emt 0:00:00]} Ra3 {[%emt 0:00:04][%cal Of6f5]} 55. g4 {[%emt 0:00:04]} (55. Bh3 $11) 55... Ke3 {[%emt 0:00:06]} ({Better is} 55... Nh8 $1 $15 56. Nxf6 Ng6) 56. Kg3 {[%emt 0:00:03] The position is equal.} Ke2+ {[%emt 0:00:01]} 57. Kh2 $1 {[%emt 0:00:01]} Ke3 {[%emt 0:00:01]} 58. Kg3 {[%emt 0:00:00]} Ke2+ {[%emt 0:00:03]} 59. Kh2 $1 {[%emt 0:00:01] Weighted Error Value: White=0.29 (precise) /Black=0.30} 1/2-1/2

[Event "Susha Chess Blitz 2022"]
[Site "Shusha"]
[Date "2022.09.24"]
[Round "3"]
[White "Vidit, Santosh Gujrathi"]
[Black "Guseinov, Gadir"]
[Result "1-0"]
[ECO "E62"]
[WhiteElo "2710"]
[BlackElo "2661"]
[Annotator "TA"]
[PlyCount "63"]
[EventDate "2022.09.24"]
[EventType "tourn"]
[EventCountry "AZE"]
[SourceTitle "playchess.com"]
[Source "ChessBase"]
[SourceQuality "1"]
[TimeControl "180+2"]

{[%evp 15,63,23,40,-1,80,77,69,62,81,73,106,85,95,83,114,67,159,142,210,197,220,172,169,177,175,132,133,123,238,236,430,419,338,208,380,380,380,380,525,527,843,599,612,610,598,577,703,669,654,654]} 1. d4 {[%emt 0:00:01]} Nf6 2. c4 g6 {[%emt 0:00:03]} 3. g3 {[%emt 0:00:01]} Bg7 {[%emt 0:00:01]} 4. Bg2 {[%emt 0:00:01]} O-O {[%emt 0:00:01]} 5. Nc3 {[%emt 0:00:01]} d6 {[%emt 0:00:02]} 6. Nf3 {[%emt 0:00:01]} Nc6 {[%emt 0:00:05]} 7. O-O {[%emt 0:00:02]} Bf5 {[%emt 0:00:01] 7...e5 is a critical line.} 8. d5 {[%emt 0:00:01]} Na5 {[%emt 0:00:00]} 9. b3 {[%emt 0:00:01] E62: King's Indian: Fianchetto: 6...c6 and Panno Variation (6...Nc6) without ...a6.} c6 {[%emt 0:00:19] [#]} (9... Ne4 $11 {remains equal.} 10. Nxe4 Bxa1) 10. Bb2 $5 $146 {[%emt 0:00:02][%mdl 8] New and interesting.} ({Predecessor:} 10. Nd4 Bd7 11. dxc6 Nxc6 12. Bb2 Nxd4 13. Qxd4 Bc6 14. Nd5 Bxd5 15. Bxd5 Ne8 16. Qd2 Bxb2 17. Qxb2 Qc7 18. Rfd1 Nf6 19. Bf3 a5 20. Rac1 Rac8 21. h4 h5 22. Kg2 Rfd8 {½-½ (40) Matlakov,M (2674)-Guseinov,G (2661) Chess.com INT 2022}) 10... cxd5 {[%emt 0:00:19]} 11. cxd5 {[%emt 0:00:01] White is slightly better.} Rc8 {[%emt 0:00:04]} 12. Nd4 {[%emt 0:00:04]} Bd7 {[%emt 0:00:02]} 13. Qd2 {[%emt 0:00:04]} Qb6 {[%emt 0:00:02]} 14. Rfd1 {[%emt 0:00:04]} Ng4 {[%emt 0:00:11] [#]} 15. e3 {[%emt 0:00:04]} (15. Ne4 $1 $16) 15... Ne5 {[%emt 0:00:02]} ({Black should play} 15... e5 $14) 16. Rab1 $16 {[%emt 0:00:07]} Rc7 (16... Qb4 $16 17. Qe2 Ng4) 17. h3 {[%emt 0:00:03]} Rfc8 {[%emt 0:00:28]} 18. f4 {[%emt 0:00:10]} Nec4 {[%emt 0:00:23]} 19. bxc4 {[%emt 0:00:01]} Nxc4 {[%emt 0:00:01]} 20. Qe2 {[%emt 0:00:02][%cal Ob2a3]} Qa5 {[%emt 0:00:05] ...Bxd4 is the strong threat.} 21. Ba1 {[%emt 0:00:22]} Na3 {[%emt 0:00:06]} (21... Bxd4 $16 {keeps fighting.} 22. exd4 (22. Rxd4 Nb6 $16) 22... b5) 22. Rb3 $18 {[%emt 0:00:04]} Rxc3 $2 {[%emt 0:00:24]} (22... a6 23. Bb2 Rxc3) 23. Bxc3 {[%emt 0:00:01]} (23. Rxc3 Rxc3 24. Bxc3 Qxc3 $16) 23... Rxc3 {[%emt 0:00:01]} 24. Qd2 {[%emt 0:00:02]} ({But not} 24. Rxb7 Ba4 25. Rd3 (25. Rxe7 Bf8 $11) 25... Rc1+ 26. Kh2 Nc2) 24... Bxd4 {[%emt 0:00:28]} (24... Nb5 25. Ne2 Qc7) 25. exd4 {[%emt 0:00:01]} ({Less strong is} 25. Qxd4 Nb5 26. Qd2 Qc7 $16) 25... Nb5 {[%emt 0:00:00]} 26. Re1 {[%emt 0:00:53]} Kf8 {[%emt 0:00:11]} 27. f5 {[%emt 0:00:43] White is clearly winning.} g5 {[%emt 0:00:18]} 28. Kh2 {[%emt 0:00:21]} h6 {[%emt 0:00:08]} 29. a4 {[%emt 0:00:11]} Qc7 {[%emt 0:00:07]} 30. Rb2 {[%emt 0:00:07]} Na3 {[%emt 0:00:04] [#]} 31. Rxb7 {[%emt 0:00:02][%mdl 512]} Qxb7 {[%emt 0:00:00]} 32. Qxc3 {Weighted Error Value: White=0.29 (precise) /Black=0.54} 1-0

[Event "Susha Chess Blitz 2022"]
[Site "Shusha"]
[Date "2022.09.24"]
[Round "3"]
[White "Mamedov, Rauf"]
[Black "Mamedyarov, Shakhriyar"]
[Result "0-1"]
[ECO "C26"]
[WhiteElo "2646"]
[BlackElo "2757"]
[Annotator "TA"]
[PlyCount "52"]
[EventDate "2022.09.24"]
[EventType "tourn"]
[EventCountry "AZE"]
[SourceTitle "playchess.com"]
[Source "ChessBase"]
[SourceQuality "1"]
[TimeControl "180+2"]

{[%evp 10,52,5,0,-2,-20,0,0,20,-16,-6,0,-6,-32,-25,-60,-45,-58,-33,-44,-28,-50,-37,-116,-94,-138,-138,-146,-150,-136,-139,-153,-62,-45,-23,-227,-251,-246,-251,-238,-259,-238,-231,-223,-208]} 1. e4 {[%emt 0:00:03]} e5 {[%emt 0:00:01]} 2. Nc3 {[%emt 0:00:03]} Nf6 {[%emt 0:00:01]} 3. g3 {[%emt 0:00:05]} Bc5 {[%emt 0:00:03]} 4. Bg2 {[%emt 0:00:04]} a6 {[%emt 0:00:06]} 5. d3 {[%emt 0:00:03]} Nc6 {[%emt 0:00:03]} 6. Nge2 {[%emt 0:00:07]} d6 {[%emt 0:00:02] C26: Vienna Game: 2...Nf6, sidelines .} 7. h3 {[%emt 0:00:07]} Be6 {[%emt 0:00:19]} 8. O-O {[%emt 0:00:06]} h6 {[%emt 0:00:32] The position is equal.} 9. a3 {[%emt 0:00:08]} d5 {[%emt 0:00:11]} 10. exd5 {[%emt 0:00:47]} Nxd5 {[%emt 0:00:01] [#]} 11. Nxd5 $146 {[%emt 0:00:01]} (11. Kh2 $5 {[%cal Rf2f4]}) ({Predecessor:} 11. Kh2 O-O 12. f4 exf4 13. Nxf4 Nxf4 14. Bxf4 Rb8 15. Ne4 Be7 16. Qh5 f5 17. Qg6 {1-0 (34) Fromberg,E-Krueger,M (2023) Germany 2011}) 11... Bxd5 {[%emt 0:00:01]} 12. Bxd5 {[%emt 0:00:01]} Qxd5 {[%emt 0:00:01]} 13. b4 {[%emt 0:00:19]} Ba7 {[%emt 0:00:03]} (13... Bb6 $5 {[%cal Rd5f3]}) 14. Rb1 {[%emt 0:00:14]} O-O-O {[%emt 0:00:04]} 15. Kh2 {[%emt 0:00:07]} f5 {[%emt 0:00:04]} 16. Qe1 {[%emt 0:00:14]} (16. a4 $15) 16... g5 {[%emt 0:00:07]} 17. a4 {[%emt 0:00:10]} e4 $1 {[%emt 0:00:16]} 18. dxe4 {[%emt 0:00:05]} Qxe4 {[%emt 0:00:03] White must now prevent ...Rhe8.} 19. b5 {[%emt 0:00:07]} Ne5 {[%emt 0:00:07][%cal Bc6e5,Be5f3,Bf3g1][%mdl 32] ( -> ...Nf3+)} ({Much less strong is} 19... Qxc2 20. Rb2 Qxa4 21. bxc6 Qxc6 22. f4 $14) 20. Ng1 {[%emt 0:00:17]} Qxe1 {[%emt 0:00:26] Black is much more active.} (20... Rhe8 $1 $17 21. Qxe4 fxe4 22. bxa6 bxa6) 21. Rxe1 $15 {[%emt 0:00:01]} Rhe8 $36 {[%emt 0:00:02][%cal Oe5g4][%mdl 2048] Threatens to win with ...Ng4+! Black has good play.} 22. Re2 $2 {[%emt 0:00:09] [#] This move loses the game for White.} (22. Kg2 $11 {and White stays safe.}) 22... Nf3+ $1 $19 {[%emt 0:00:06][%mdl 512]} 23. Kg2 {[%emt 0:00:07] [#]} Nxg1 {[%emt 0:00:02]} 24. Rxe8 {[%emt 0:00:03]} Rxe8 {[%emt 0:00:01]} 25. Kxg1 {[%emt 0:00:01]} Re1+ {[%emt 0:00:01]} 26. Kg2 {[%emt 0:00:05]} Re2 {[%emt 0:00:01][%csl LRc2,LRf2] Weighted Error Value: White=0.32/Black=0.18 (very precise)} 0-1